[Event "*** Titled Tuesday Blitz"]
[Site "Chess.com"]
[Date "2020.04.07"]
[Round "3"]
[White "Bambi2006"]
[Black "ajkom197"]
[Result "0-1"]
[WhiteElo "2480"]
[BlackElo "2307"]
[TimeControl "180+1"]
[EndTime "13:30:06 PDT"]
[Termination "ajkom197 won by resignation"]

1. d4 {[%clk 0:03:00.9]} 1... d5 {[%clk 0:02:50.8]} 2. Nf3 {[%clk 0:03:00.2]}
2... Nf6 {[%clk 0:02:49.8]} 3. c4 {[%clk 0:02:59.9]} 3... c6 {[%clk 0:02:48.3]}
4. g3 {[%clk 0:03:00.1]} 4... Bf5 {[%clk 0:02:45.9]} 5. Bg2 {[%clk 0:03:00]}
5... e6 {[%clk 0:02:46.2]} 6. O-O {[%clk 0:03:00]} 6... Be7 {[%clk 0:02:46.5]}
7. Qb3 {[%clk 0:03:00]} 7... Qb6 {[%clk 0:02:45.9]} 8. c5 {[%clk 0:02:59.8]}
8... Qxb3 {[%clk 0:02:44.6]} 9. axb3 {[%clk 0:03:00.7]} 9... Bxb1 {[%clk
0:02:44.7]} 10. Rxb1 {[%clk 0:03:00.2]} 10... O-O {[%clk 0:02:45.3]} 11. Bf4
{[%clk 0:02:59.4]} 11... Nbd7 {[%clk 0:02:44.9]} 12. b4 {[%clk 0:02:59.1]} 12...
a6 {[%clk 0:02:44.5]} 13. Nd2 {[%clk 0:02:59.1]} 13... Rfe8 {[%clk 0:02:43.8]}
14. Nb3 {[%clk 0:02:59.2]} 14... Bd8 {[%clk 0:02:43.8]} 15. Ra1 {[%clk
0:02:50.4]} 15... Rc8 {[%clk 0:02:41.8]} 16. Rfd1 {[%clk 0:02:35.5]} 16... e5
{[%clk 0:02:39.8]} 17. dxe5 {[%clk 0:02:33]} 17... Nxe5 {[%clk 0:02:40.7]} 18.
Nd4 {[%clk 0:02:27.1]} 18... Bc7 {[%clk 0:02:31.2]} 19. Nf5 {[%clk 0:02:21.9]}
19... g6 {[%clk 0:02:26.8]} 20. Nd4 {[%clk 0:02:14.1]} 20... Kg7 {[%clk
0:02:15.3]} 21. Bh3 {[%clk 0:02:13.3]} 21... Rcd8 {[%clk 0:02:05.3]} 22. Kf1
{[%clk 0:02:10.8]} 22... Re7 {[%clk 0:02:02.2]} 23. Rac1 {[%clk 0:02:03.2]}
23... h6 {[%clk 0:02:01]} 24. Rc3 {[%clk 0:02:01.1]} 24... Neg4 {[%clk
0:01:57.1]} 25. Bxc7 {[%clk 0:01:44.2]} 25... Rxc7 {[%clk 0:01:58]} 26. Kg1
{[%clk 0:01:44]} 26... Re8 {[%clk 0:01:53.1]} 27. Rf3 {[%clk 0:01:39.1]} 27...
h5 {[%clk 0:01:46.1]} 28. Bg2 {[%clk 0:01:26]} 28... Rce7 {[%clk 0:01:44.8]} 29.
h3 {[%clk 0:01:23.4]} 29... Ne5 {[%clk 0:01:44.4]} 30. Re3 {[%clk 0:01:23.4]}
30... Nc4 {[%clk 0:01:39.9]} 31. Rxe7 {[%clk 0:01:22.4]} 31... Rxe7 {[%clk
0:01:40.8]} 32. e3 {[%clk 0:01:22.4]} 32... Nxb2 {[%clk 0:01:37.6]} 33. Ra1
{[%clk 0:01:20]} 33... Nd3 {[%clk 0:01:35.6]} 34. Ra4 {[%clk 0:01:16.5]} 34...
Ne4 {[%clk 0:01:33.1]} 35. Ra2 {[%clk 0:01:06]} 35... Nxb4 {[%clk 0:01:27.6]}
36. Ra4 {[%clk 0:01:03.1]} 36... Nd3 {[%clk 0:01:26.3]} 37. Ra2 {[%clk
0:01:02.4]} 37... Ndxc5 {[%clk 0:01:21.9]} 38. Ra3 {[%clk 0:00:55.8]} 38... Ne6
{[%clk 0:01:18.9]} 39. Nf3 {[%clk 0:00:53.4]} 39... Rc7 {[%clk 0:01:07.3]} 40.
Rd3 {[%clk 0:00:51.8]} 40... Nf6 {[%clk 0:01:01.6]} 41. Ne5 {[%clk 0:00:51.1]}
41... c5 {[%clk 0:00:59.6]} 42. g4 {[%clk 0:00:44.1]} 42... hxg4 {[%clk
0:00:59.2]} 43. hxg4 {[%clk 0:00:45]} 43... c4 {[%clk 0:00:59.5]} 44. Rc3 {[%clk
0:00:42.6]} 44... b5 {[%clk 0:00:59.3]} 45. g5 {[%clk 0:00:42.3]} 45... Ne4
{[%clk 0:00:58.8]} 46. Rc1 {[%clk 0:00:38]} 46... N6xg5 {[%clk 0:00:56.5]} 47.
f3 {[%clk 0:00:36.7]} 47... Nd2 {[%clk 0:00:52.7]} 48. Rc2 {[%clk 0:00:34.1]}
48... f6 {[%clk 0:00:50.9]} 49. Rxd2 {[%clk 0:00:31.2]} 49... fxe5 {[%clk
0:00:50.9]} 50. Rxd5 {[%clk 0:00:30.3]} 50... c3 {[%clk 0:00:51.3]} 51. Rd1
{[%clk 0:00:30.2]} 51... e4 {[%clk 0:00:50.9]} 52. fxe4 {[%clk 0:00:29.4]} 52...
c2 {[%clk 0:00:49.9]} 53. Rc1 {[%clk 0:00:29.4]} 53... Kf6 {[%clk 0:00:50.4]}
54. Bf1 {[%clk 0:00:28.5]} 54... Nxe4 {[%clk 0:00:49.2]} 55. Bd3 {[%clk
0:00:28.6]} 55... Ke5 {[%clk 0:00:46.5]} 56. Rxc2 {[%clk 0:00:26.5]} 56... Rxc2
{[%clk 0:00:46.1]} 57. Bxc2 {[%clk 0:00:27.4]} 57... g5 {[%clk 0:00:46.6]} 58.
Kf1 {[%clk 0:00:27.5]} 58... a5 {[%clk 0:00:46.7]} 59. Ke2 {[%clk 0:00:27.9]}
59... a4 {[%clk 0:00:44.8]} 60. Kf3 {[%clk 0:00:25.7]} 60... Nc5 {[%clk
0:00:42.4]} 61. Ke2 {[%clk 0:00:24.8]} 61... a3 {[%clk 0:00:41.9]} 62. Kd2
{[%clk 0:00:24.2]} 62... b4 {[%clk 0:00:42.1]} 63. Bb1 {[%clk 0:00:24.1]} 63...
g4 {[%clk 0:00:41.5]} 0-1

[Event "*** Titled Tuesday Blitz"]
[Site "Chess.com"]
[Date "2020.04.07"]
[Round "3"]
[White "Shield12"]
[Black "suyu28"]
[Result "1-0"]
[WhiteElo "2929"]
[BlackElo "2489"]
[TimeControl "180+1"]
[EndTime "13:30:08 PDT"]
[Termination "Shield12 won on time"]

1. e4 {[%clk 0:03:00.9]} 1... e5 {[%clk 0:03:00.1]} 2. Nf3 {[%clk 0:03:00.8]}
2... Nc6 {[%clk 0:03:00.4]} 3. Bb5 {[%clk 0:03:01]} 3... a6 {[%clk 0:03:00.6]}
4. Ba4 {[%clk 0:03:01.4]} 4... Nf6 {[%clk 0:03:00.9]} 5. O-O {[%clk 0:03:01.7]}
5... b5 {[%clk 0:03:01.5]} 6. Bb3 {[%clk 0:03:01.5]} 6... Be7 {[%clk 0:03:02.1]}
7. d3 {[%clk 0:02:56.2]} 7... d6 {[%clk 0:02:57]} 8. a3 {[%clk 0:02:55.9]} 8...
O-O {[%clk 0:02:52.9]} 9. Nc3 {[%clk 0:02:56.1]} 9... Bg4 {[%clk 0:02:47.1]} 10.
Be3 {[%clk 0:02:55.2]} 10... Nd4 {[%clk 0:02:19.7]} 11. Bxd4 {[%clk 0:02:55.2]}
11... exd4 {[%clk 0:02:20.6]} 12. Nd5 {[%clk 0:02:55.7]} 12... c6 {[%clk
0:02:18.5]} 13. Nxe7+ {[%clk 0:02:50.8]} 13... Qxe7 {[%clk 0:02:19.4]} 14. h3
{[%clk 0:02:51.7]} 14... Bxf3 {[%clk 0:02:18.8]} 15. Qxf3 {[%clk 0:02:52.6]}
15... Nd7 {[%clk 0:02:19.1]} 16. Qg3 {[%clk 0:02:50.1]} 16... Nc5 {[%clk
0:02:17.7]} 17. Ba2 {[%clk 0:02:49.7]} 17... Kh8 {[%clk 0:02:14.1]} 18. f4
{[%clk 0:02:49.2]} 18... a5 {[%clk 0:02:08.2]} 19. f5 {[%clk 0:02:41.9]} 19...
Qf6 {[%clk 0:02:06.6]} 20. Rae1 {[%clk 0:02:36.2]} 20... Na4 {[%clk 0:01:55.8]}
21. b4 {[%clk 0:02:35.2]} 21... Nc3 {[%clk 0:01:51.3]} 22. Bb3 {[%clk
0:02:28.7]} 22... a4 {[%clk 0:01:48.9]} 23. Bxf7 {[%clk 0:02:28.8]} 23... Rxf7
{[%clk 0:01:46.3]} 24. e5 {[%clk 0:02:29.2]} 24... dxe5 {[%clk 0:01:43.6]} 25.
Rxe5 {[%clk 0:02:29.2]} 25... Nd5 {[%clk 0:01:42.1]} 26. Re6 {[%clk 0:02:27.3]}
26... Qd8 {[%clk 0:01:36.1]} 27. Rxc6 {[%clk 0:02:03.4]} 27... Ne3 {[%clk
0:01:36]} 28. Rf4 {[%clk 0:01:55.8]} 28... Qd5 {[%clk 0:01:18.1]} 29. Rc5 {[%clk
0:01:52.9]} 29... Qa2 {[%clk 0:01:01.1]} 30. Qf3 {[%clk 0:01:28.7]} 30... Raf8
{[%clk 0:00:54.6]} 31. Kh2 {[%clk 0:01:28.1]} 31... Qa1 {[%clk 0:00:23.3]} 32.
c3 {[%clk 0:01:23.3]} 32... Nc2 {[%clk 0:00:16.1]} 33. Qh5 {[%clk 0:01:08.4]}
33... h6 {[%clk 0:00:11.8]} 34. Rc6 {[%clk 0:00:59.5]} 34... Rf6 {[%clk
0:00:09.1]} 35. Rc7 {[%clk 0:00:38.8]} 35... Ne3 {[%clk 0:00:05.8]} 36. Qf3
{[%clk 0:00:23.3]} 36... Nxf5 {[%clk 0:00:04]} 37. Qg4 {[%clk 0:00:18.4]} 1-0

[Event "*** Titled Tuesday Blitz"]
[Site "Chess.com"]
[Date "2020.04.07"]
[Round "3"]
[White "AndrewDGreen"]
[Black "tamarozi99"]
[Result "1-0"]
[WhiteElo "2327"]
[BlackElo "1924"]
[TimeControl "180+1"]
[EndTime "13:30:08 PDT"]
[Termination "AndrewDGreen won by resignation"]

1. d4 {[%clk 0:02:47.8]} 1... Nf6 {[%clk 0:02:59.1]} 2. Nf3 {[%clk 0:02:47.5]}
2... g6 {[%clk 0:02:59]} 3. Nc3 {[%clk 0:02:47.2]} 3... d5 {[%clk 0:02:58.4]} 4.
Bf4 {[%clk 0:02:46.7]} 4... Bg7 {[%clk 0:02:58.4]} 5. e3 {[%clk 0:02:46.8]} 5...
a6 {[%clk 0:02:57]} 6. Be2 {[%clk 0:02:46.6]} 6... O-O {[%clk 0:02:55.1]} 7. Ne5
{[%clk 0:02:42.6]} 7... Nbd7 {[%clk 0:02:52.6]} 8. h4 {[%clk 0:02:38.5]} 8... h5
{[%clk 0:02:52]} 9. f3 {[%clk 0:02:29.4]} 9... c5 {[%clk 0:02:47.5]} 10. Qd2
{[%clk 0:02:26.6]} 10... b5 {[%clk 0:02:46.3]} 11. g4 {[%clk 0:01:52.5]} 11...
b4 {[%clk 0:02:41.6]} 12. Na4 {[%clk 0:01:51.7]} 12... Qa5 {[%clk 0:02:33.6]}
13. b3 {[%clk 0:01:48.2]} 13... c4 {[%clk 0:02:33.6]} 14. g5 {[%clk 0:01:24]}
14... Ne8 {[%clk 0:02:14.4]} 15. Nc6 {[%clk 0:01:09.3]} 15... Qb5 {[%clk
0:02:14.4]} 16. Nxe7+ {[%clk 0:01:09.4]} 16... Kh7 {[%clk 0:02:13.5]} 17. e4
{[%clk 0:01:05.1]} 17... c3 {[%clk 0:01:51.5]} 18. Qe3 {[%clk 0:00:56.2]} 18...
Qa5 {[%clk 0:01:51.4]} 19. Nc6 {[%clk 0:00:53]} 19... Qxa4 {[%clk 0:01:28.3]}
20. bxa4 {[%clk 0:00:49.9]} 20... dxe4 {[%clk 0:01:28.6]} 21. fxe4 {[%clk
0:00:49.6]} 21... a5 {[%clk 0:01:26.2]} 22. Bc4 {[%clk 0:00:41]} 22... Nb6
{[%clk 0:01:24]} 23. Bb3 {[%clk 0:00:39.7]} 23... Bd7 {[%clk 0:01:18.7]} 24. Ne5
{[%clk 0:00:37.7]} 24... Bxa4 {[%clk 0:01:16.6]} 25. d5 {[%clk 0:00:32.2]} 25...
Bxb3 {[%clk 0:01:09.8]} 26. axb3 {[%clk 0:00:33.1]} 26... Nc8 {[%clk 0:01:08]}
27. Qc5 {[%clk 0:00:29.1]} 27... Ned6 {[%clk 0:01:03.8]} 28. Rxa5 {[%clk
0:00:23.3]} 28... Rxa5 {[%clk 0:01:03.8]} 29. Qxa5 {[%clk 0:00:23.4]} 29... Nxe4
{[%clk 0:01:04.7]} 30. Qxb4 {[%clk 0:00:22.7]} 30... Ncd6 {[%clk 0:00:59.2]} 31.
Nd3 {[%clk 0:00:17.9]} 31... Re8 {[%clk 0:00:55.9]} 32. O-O {[%clk 0:00:17.1]}
32... Nf5 {[%clk 0:00:47.3]} 33. d6 {[%clk 0:00:13.3]} 33... Bd4+ {[%clk
0:00:46.5]} 34. Kg2 {[%clk 0:00:08.7]} 34... Nxh4+ {[%clk 0:00:44.5]} 35. Kh3
{[%clk 0:00:08.7]} 35... Nf5 {[%clk 0:00:42.2]} 36. d7 {[%clk 0:00:08.5]} 36...
Rd8 {[%clk 0:00:41.8]} 37. Qb7 {[%clk 0:00:07.9]} 37... f6 {[%clk 0:00:28.9]}
38. Qxe4 {[%clk 0:00:07.1]} 38... fxg5 {[%clk 0:00:25.8]} 39. Bxg5 {[%clk
0:00:07.4]} 39... Rxd7 {[%clk 0:00:22]} 40. Rxf5 {[%clk 0:00:07.3]} 1-0

[Event "*** Titled Tuesday Blitz"]
[Site "Chess.com"]
[Date "2020.04.07"]
[Round "3"]
[White "anon219"]
[Black "korbul"]
[Result "1-0"]
[WhiteElo "2810"]
[BlackElo "2570"]
[TimeControl "180+1"]
[EndTime "13:30:09 PDT"]
[Termination "anon219 won by resignation"]

1. e4 {[%clk 0:03:00.9]} 1... c5 {[%clk 0:02:59.4]} 2. Nf3 {[%clk 0:02:59.1]}
2... e6 {[%clk 0:02:59.3]} 3. d4 {[%clk 0:02:58.7]} 3... cxd4 {[%clk 0:02:59.3]}
4. Nxd4 {[%clk 0:02:59.6]} 4... a6 {[%clk 0:02:54.1]} 5. c4 {[%clk 0:02:59.6]}
5... Qc7 {[%clk 0:02:53.8]} 6. Nc3 {[%clk 0:02:59.1]} 6... Nf6 {[%clk
0:02:53.7]} 7. a3 {[%clk 0:02:59.1]} 7... b6 {[%clk 0:02:52.3]} 8. Be3 {[%clk
0:02:59]} 8... Bb7 {[%clk 0:02:52.1]} 9. f3 {[%clk 0:02:57.3]} 9... h5 {[%clk
0:02:52.1]} 10. Be2 {[%clk 0:02:53.5]} 10... h4 {[%clk 0:02:51.9]} 11. Qd2
{[%clk 0:02:51.6]} 11... Nc6 {[%clk 0:02:51]} 12. Rc1 {[%clk 0:02:50.9]} 12...
Ne5 {[%clk 0:02:44.7]} 13. h3 {[%clk 0:02:29.4]} 13... Nh5 {[%clk 0:02:41.9]}
14. f4 {[%clk 0:02:26.4]} 14... Ng3 {[%clk 0:02:32.7]} 15. Rg1 {[%clk 0:01:48]}
15... Nxe2 {[%clk 0:02:27.3]} 16. Qxe2 {[%clk 0:01:43.4]} 16... Nxc4 {[%clk
0:02:10.5]} 17. Ncb5 {[%clk 0:01:37.6]} 17... axb5 {[%clk 0:02:09.8]} 18. Nxb5
{[%clk 0:01:38.5]} 18... Qc6 {[%clk 0:02:07.1]} 19. Qxc4 {[%clk 0:01:38.2]}
19... Rc8 {[%clk 0:01:59.2]} 20. Qxc6 {[%clk 0:01:33.7]} 20... Rxc6 {[%clk
0:01:58.4]} 21. Rxc6 {[%clk 0:01:29.6]} 21... Bxc6 {[%clk 0:01:58.1]} 22. Nc7+
{[%clk 0:01:26.9]} 22... Kd8 {[%clk 0:01:52.8]} 23. Bxb6 {[%clk 0:01:25.6]}
23... Kc8 {[%clk 0:01:53]} 24. Ne8 {[%clk 0:00:46.9]} 24... Be7 {[%clk
0:01:31.6]} 25. Nxg7 {[%clk 0:00:42.8]} 25... Rh7 {[%clk 0:01:28.8]} 26. Bd4
{[%clk 0:00:41.7]} 26... d6 {[%clk 0:01:18.7]} 27. Kd2 {[%clk 0:00:31.1]} 27...
Bf8 {[%clk 0:01:08]} 28. Rc1 {[%clk 0:00:28.5]} 28... Kb7 {[%clk 0:01:07.8]} 29.
Rxc6 {[%clk 0:00:23.7]} 29... Kxc6 {[%clk 0:01:07.9]} 30. Ne8 {[%clk 0:00:24.6]}
30... d5 {[%clk 0:01:06.5]} 31. exd5+ {[%clk 0:00:23.8]} 31... Kxd5 {[%clk
0:01:06.7]} 32. Nf6+ {[%clk 0:00:23.9]} 32... Kxd4 {[%clk 0:01:06.8]} 33. Nxh7
{[%clk 0:00:24.8]} 33... Be7 {[%clk 0:01:05.4]} 34. Ng5 {[%clk 0:00:24.9]} 34...
e5 {[%clk 0:00:59.1]} 35. Nf3+ {[%clk 0:00:23.8]} 35... Ke4 {[%clk 0:00:58.5]}
36. fxe5 {[%clk 0:00:24.7]} 36... Bc5 {[%clk 0:00:56.7]} 37. Nxh4 {[%clk
0:00:23.6]} 37... Kxe5 {[%clk 0:00:55.9]} 38. Nf3+ {[%clk 0:00:24.1]} 38... Kf4
{[%clk 0:00:55.9]} 39. b4 {[%clk 0:00:22.6]} 39... Be7 {[%clk 0:00:53.9]} 40.
Kc3 {[%clk 0:00:22.2]} 40... Kg3 {[%clk 0:00:54]} 41. Ne5 {[%clk 0:00:22.1]}
41... f5 {[%clk 0:00:53.2]} 42. Ng6 {[%clk 0:00:21]} 42... Bd6 {[%clk
0:00:52.7]} 43. a4 {[%clk 0:00:20.1]} 43... Kxg2 {[%clk 0:00:52.7]} 44. h4
{[%clk 0:00:20.7]} 44... f4 {[%clk 0:00:52.8]} 45. h5 {[%clk 0:00:19.7]} 45...
f3 {[%clk 0:00:51]} 46. Nh4+ {[%clk 0:00:20.2]} 46... Kg3 {[%clk 0:00:50.8]} 47.
Nxf3 {[%clk 0:00:20.7]} 47... Kxf3 {[%clk 0:00:51.7]} 48. a5 {[%clk 0:00:21.3]}
48... Ke4 {[%clk 0:00:51.3]} 49. h6 {[%clk 0:00:21.5]} 49... Kd5 {[%clk
0:00:49.9]} 50. h7 {[%clk 0:00:21.6]} 50... Be5+ {[%clk 0:00:48.9]} 51. Kb3
{[%clk 0:00:22.1]} 51... Kc6 {[%clk 0:00:49.8]} 52. Kc4 {[%clk 0:00:22.4]} 52...
Bh8 {[%clk 0:00:45.8]} 53. b5+ {[%clk 0:00:22.9]} 53... Kb7 {[%clk 0:00:46.7]}
54. Kc5 {[%clk 0:00:23.2]} 54... Bc3 {[%clk 0:00:46.3]} 55. a6+ {[%clk
0:00:23.1]} 55... Ka7 {[%clk 0:00:45.3]} 56. Kc6 {[%clk 0:00:22.4]} 56... Bd4
{[%clk 0:00:44.2]} 57. Kd5 {[%clk 0:00:23]} 57... Bh8 {[%clk 0:00:42.5]} 58. Ke6
{[%clk 0:00:23.5]} 58... Kb6 {[%clk 0:00:42.5]} 59. Kf7 {[%clk 0:00:24]} 1-0

[Event "*** Titled Tuesday Blitz"]
[Site "Chess.com"]
[Date "2020.04.07"]
[Round "3"]
[White "Taron_Shagbazyan"]
[Black "TwentyHoursADay"]
[Result "0-1"]
[WhiteElo "2682"]
[BlackElo "2470"]
[TimeControl "180+1"]
[EndTime "13:30:09 PDT"]
[Termination "TwentyHoursADay won by resignation"]

1. d4 {[%clk 0:02:37.1]} 1... Nf6 {[%clk 0:02:59.4]} 2. c4 {[%clk 0:02:37]} 2...
d6 {[%clk 0:02:59.8]} 3. Nc3 {[%clk 0:02:37.4]} 3... e5 {[%clk 0:03:00.1]} 4.
Nf3 {[%clk 0:02:32.3]} 4... Nbd7 {[%clk 0:02:59.9]} 5. e4 {[%clk 0:02:31.3]}
5... g6 {[%clk 0:02:59.5]} 6. h3 {[%clk 0:02:30.1]} 6... Bg7 {[%clk 0:02:59.7]}
7. Be3 {[%clk 0:02:30.7]} 7... O-O {[%clk 0:03:00.1]} 8. Qd2 {[%clk 0:02:29.1]}
8... Re8 {[%clk 0:02:56.6]} 9. d5 {[%clk 0:02:28.1]} 9... Nh5 {[%clk 0:02:53.4]}
10. g3 {[%clk 0:02:20.2]} 10... Nc5 {[%clk 0:02:38.1]} 11. b4 {[%clk 0:02:14.9]}
11... Na6 {[%clk 0:02:38.4]} 12. a3 {[%clk 0:02:15.1]} 12... f5 {[%clk
0:02:37.5]} 13. Rc1 {[%clk 0:02:08.9]} 13... Bd7 {[%clk 0:02:08.1]} 14. Bg2
{[%clk 0:02:00.9]} 14... f4 {[%clk 0:02:05.3]} 15. gxf4 {[%clk 0:02:01.1]} 15...
Nxf4 {[%clk 0:02:05.7]} 16. Bxf4 {[%clk 0:02:00.6]} 16... exf4 {[%clk
0:02:06.6]} 17. Qxf4 {[%clk 0:01:51.5]} 17... Qe7 {[%clk 0:01:50.7]} 18. O-O
{[%clk 0:01:51]} 18... Rf8 {[%clk 0:01:36.2]} 19. Qe3 {[%clk 0:01:48.2]} 19...
Rae8 {[%clk 0:01:27.7]} 20. Nd4 {[%clk 0:01:44.1]} 20... Qh4 {[%clk 0:01:24.9]}
21. Nce2 {[%clk 0:01:41.8]} 21... Bh6 {[%clk 0:00:49.8]} 22. f4 {[%clk
0:01:41.7]} 22... g5 {[%clk 0:00:50.2]} 23. f5 {[%clk 0:01:24.1]} 23... g4
{[%clk 0:00:49.9]} 24. Qd3 {[%clk 0:01:18.2]} 24... Bxc1 {[%clk 0:00:46.6]} 25.
Rxc1 {[%clk 0:01:18.6]} 25... gxh3 {[%clk 0:00:46]} 26. Qxh3 {[%clk 0:01:12.2]}
26... Qxh3 {[%clk 0:00:45.5]} 27. Bxh3 {[%clk 0:01:13.1]} 27... Rxe4 {[%clk
0:00:45.6]} 28. Bg2 {[%clk 0:01:11.1]} 28... Rg4 {[%clk 0:00:36.9]} 29. Rf1
{[%clk 0:01:05.8]} 29... Kf7 {[%clk 0:00:28.7]} 30. Kf2 {[%clk 0:01:03.7]} 30...
Rfg8 {[%clk 0:00:25.3]} 31. Bf3 {[%clk 0:01:03.3]} 31... Rh4 {[%clk 0:00:24.5]}
32. Rc1 {[%clk 0:00:59.7]} 32... Rh2+ {[%clk 0:00:23.7]} 33. Ke3 {[%clk
0:01:00.2]} 33... Nb8 {[%clk 0:00:19.5]} 34. Nf4 {[%clk 0:00:57.7]} 34... c5
{[%clk 0:00:16.7]} 35. bxc5 {[%clk 0:00:57]} 35... dxc5 {[%clk 0:00:16.6]} 36.
Nde6 {[%clk 0:00:57.1]} 36... b6 {[%clk 0:00:15.7]} 37. Re1 {[%clk 0:00:40.6]}
37... Be8 {[%clk 0:00:15.9]} 38. Nd3 {[%clk 0:00:38.1]} 38... Nd7 {[%clk
0:00:15.9]} 39. Kf4 {[%clk 0:00:37.5]} 39... Rh4+ {[%clk 0:00:15.3]} 40. Ke3
{[%clk 0:00:37.3]} 40... Kf6 {[%clk 0:00:15.6]} 41. Rf1 {[%clk 0:00:35.8]} 41...
Rh3 {[%clk 0:00:14.4]} 42. Ndf4 {[%clk 0:00:35.2]} 42... Rh2 {[%clk 0:00:13.9]}
43. Nh5+ {[%clk 0:00:35.1]} 43... Bxh5 {[%clk 0:00:12.9]} 44. Be4 {[%clk
0:00:33]} 44... Rg3+ {[%clk 0:00:12]} 45. Kf4 {[%clk 0:00:32.4]} 45... Rhh3
{[%clk 0:00:09.6]} 46. Bf3 {[%clk 0:00:09.5]} 46... Rxf3+ {[%clk 0:00:09.7]} 47.
Rxf3 {[%clk 0:00:09.6]} 47... Rxf3+ {[%clk 0:00:10.6]} 48. Ke4 {[%clk
0:00:10.2]} 48... Rxf5 {[%clk 0:00:10.7]} 0-1

[Event "*** Titled Tuesday Blitz"]
[Site "Chess.com"]
[Date "2020.04.07"]
[Round "3"]
[White "AndreyNeves"]
[Black "Cukiero"]
[Result "0-1"]
[WhiteElo "2182"]
[BlackElo "2521"]
[TimeControl "180+1"]
[EndTime "13:30:09 PDT"]
[Termination "Cukiero won by resignation"]

1. d4 {[%clk 0:03:00.9]} 1... g6 {[%clk 0:02:59.1]} 2. c4 {[%clk 0:03:00.4]}
2... Bg7 {[%clk 0:03:00]} 3. Nc3 {[%clk 0:03:00.3]} 3... Nf6 {[%clk 0:02:59.8]}
4. e4 {[%clk 0:02:59.4]} 4... O-O {[%clk 0:03:00.4]} 5. Be2 {[%clk 0:02:58.7]}
5... d6 {[%clk 0:03:00.5]} 6. Bg5 {[%clk 0:02:57.4]} 6... c5 {[%clk 0:02:57.4]}
7. d5 {[%clk 0:02:56.5]} 7... a6 {[%clk 0:02:53.6]} 8. Qd2 {[%clk 0:02:50.7]}
8... Bd7 {[%clk 0:02:37.3]} 9. h4 {[%clk 0:02:41.9]} 9... b5 {[%clk 0:02:35.6]}
10. f3 {[%clk 0:02:33.5]} 10... Nh5 {[%clk 0:02:23.3]} 11. g4 {[%clk 0:02:13.3]}
11... Ng3 {[%clk 0:02:19.7]} 12. Rh2 {[%clk 0:02:11.2]} 12... b4 {[%clk
0:01:39.8]} 13. Nd1 {[%clk 0:02:05.4]} 13... Nxe2 {[%clk 0:00:43.1]} 14. Nxe2
{[%clk 0:02:03.2]} 14... Ra7 {[%clk 0:00:38.1]} 15. Bh6 {[%clk 0:01:56]} 15...
e6 {[%clk 0:00:32.9]} 16. Bxg7 {[%clk 0:01:55.5]} 16... Kxg7 {[%clk 0:00:33]}
17. h5 {[%clk 0:01:55.6]} 17... g5 {[%clk 0:00:30.1]} 18. h6+ {[%clk 0:01:54.5]}
18... Kg8 {[%clk 0:00:28]} 19. Rh5 {[%clk 0:01:51.6]} 19... f6 {[%clk
0:00:27.5]} 20. dxe6 {[%clk 0:01:46.7]} 20... Bxe6 {[%clk 0:00:27.5]} 21. b3
{[%clk 0:01:46]} 21... Nc6 {[%clk 0:00:27.3]} 22. Ne3 {[%clk 0:01:43.6]} 22...
Ne5 {[%clk 0:00:27.6]} 23. Rh3 {[%clk 0:01:34.6]} 23... a5 {[%clk 0:00:26.1]}
24. Nf5 {[%clk 0:01:17.1]} 24... a4 {[%clk 0:00:26.4]} 25. Rb1 {[%clk
0:01:08.5]} 25... axb3 {[%clk 0:00:26.4]} 26. axb3 {[%clk 0:01:08.7]} 26... Bxf5
{[%clk 0:00:26.7]} 27. gxf5 {[%clk 0:01:04.6]} 27... Qe7 {[%clk 0:00:26.4]} 28.
f4 {[%clk 0:01:02.7]} 28... gxf4 {[%clk 0:00:25.9]} 29. Nxf4 {[%clk 0:00:57.4]}
29... Kh8 {[%clk 0:00:24.8]} 30. Rg3 {[%clk 0:00:45.1]} 30... Nxc4 {[%clk
0:00:22]} 31. Qg2 {[%clk 0:00:26.4]} 31... Qe5 {[%clk 0:00:16.6]} 32. Ne6 {[%clk
0:00:17.9]} 32... Ra2 {[%clk 0:00:13.8]} 33. Qxa2 {[%clk 0:00:12.9]} 33... Qxg3+
{[%clk 0:00:13.8]} 34. Qf2 {[%clk 0:00:10.3]} 34... Qc3+ {[%clk 0:00:13.8]} 35.
Kf1 {[%clk 0:00:09.6]} 35... Nd2+ {[%clk 0:00:14]} 36. Qxd2 {[%clk 0:00:07.8]}
36... Qxd2 {[%clk 0:00:13.7]} 37. Re1 {[%clk 0:00:07.3]} 37... Rg8 {[%clk
0:00:13.1]} 38. Re2 {[%clk 0:00:07.2]} 38... Rg1+ {[%clk 0:00:12.6]} 39. Kxg1
{[%clk 0:00:06.7]} 39... Qxe2 {[%clk 0:00:12.5]} 40. Nf4 {[%clk 0:00:07]} 40...
Qe3+ {[%clk 0:00:12.2]} 41. Kg2 {[%clk 0:00:06.2]} 41... Qxf4 {[%clk 0:00:13.1]}
42. e5 {[%clk 0:00:05.8]} 42... Qxe5 {[%clk 0:00:13.4]} 43. Kf3 {[%clk
0:00:02.9]} 43... d5 {[%clk 0:00:14.3]} 0-1